bitfinex-derivatives/quotes_ETHF0:USTF0_20250803
["timestamp","ask_amount","ask_price","bid_price","bid_amount"]
[1754258444079,1.8069,3505.7,3505.6,1.88396]
[1754258444274,1.8069,3505.7,3505.6,2.34556]
[1754258445281,1.8069,3505.7,3505.6,0.87216]
[1754258446376,1.8069,3505.7,3505.6,0.506]
[1754258446583,1.8069,3505.6,3505.5,0.57048]
[1754258447082,1.8069,3505.3,3505.2,0.57053]
[1754258447381,1.8069,3505.3,3505.2,0.87223]
[1754258447774,1.8069,3505.3,3505.2,0.3017]
[1754258448473,0.7673,3505.0,3504.9,0.57058]
[1754258448681,1.8069,3505.0,3504.9,0.57058]
[1754258448873,1.8069,3505.0,3504.9,0.87228]
[1754258449177,1.8069,3505.0,3504.9,0.506]
[1754258449384,1.8069,3504.9,3504.8,0.3017]
[1754258449683,1.8069,3504.8,3504.7,0.3017]
[1754258449875,20.2455,3504.8,3504.5,0.57064]
[1754258450179,1.8069,3504.7,3504.6,0.3017]
[1754258451171,0.7185,3504.7,3504.4,0.57066]
[1754258451375,1.8069,3504.5,3504.4,0.87236]
[1754258451585,21.3439,3504.5,3504.4,0.87236]
[1754258452886,21.3439,3504.5,3504.4,0.3017]
[1754258454088,20.2555,3504.5,3504.4,0.3017]
[1754258454787,21.3439,3504.5,3504.4,0.3017]
[1754258455596,21.3439,3504.5,3504.4,0.506]
[1754258455889,21.0228,3504.5,3504.4,0.506]
[1754258456090,21.0228,3504.5,3504.4,1.3135]
[1754258459294,0.4194,3504.6,3504.5,0.77495]
[1754258459493,21.0098,3504.6,3504.5,2.34575]
[1754258459688,19.524,3504.6,3504.5,0.87235]
[1754258459895,19.524,3504.6,3504.5,1.57775]
[1754258460095,21.0098,3504.6,3504.5,2.34575]
[1754258462101,19.524,3504.6,3504.5,2.34575]
[1754258463203,19.8231,3504.6,3504.5,2.34575]
[1754258463399,20.4817,3504.6,3504.5,2.34575]
[1754258463704,21.0098,3504.6,3504.5,2.34575]
[1754258465101,20.4775,3504.6,3504.5,2.34575]
[1754258465500,19.9708,3504.6,3504.4,0.57066]
[1754258465703,1.0396,3504.5,3504.4,0.57066]
[1754258466003,5.0147,3504.5,3504.1,0.7607]
[1754258466304,1.8069,3504.3,3504.2,0.3017]
[1754258469304,1.8069,3504.3,3504.2,0.506]
[1754258470301,0.57067,3504.4,3504.0,0.57073]
[1754258470509,4.60971,3505.4,3505.3,0.5084]
[1754258470697,4.60971,3505.4,3504.5,1.0144]
[1754258470698,0.7185,3504.6,3504.5,1.0144]
[1754258470897,1.4858,3504.6,3504.5,1.7751]
[1754258472005,1.02277645,3506.1,3504.4,0.4616]
[1754258472303,1.039,3506.9,3506.8,0.57028]
[1754258472505,0.5281,3506.8,3506.7,0.57029]
[1754258472704,1.24463938,3506.8,3506.7,0.57029]
[1754258472907,1.56573938,3506.8,3506.7,0.57029]
[1754258475804,0.20563938,3506.8,3506.7,0.57029]
[1754258476010,0.51043938,3506.8,3506.7,0.57029]
[1754258476202,1.01763938,3506.8,3506.7,0.57029]
[1754258476910,0.51043938,3506.8,3506.7,0.57029]
[1754258477207,0.20563938,3506.8,3506.7,3.75991837]
[1754258477707,0.20563938,3506.8,3506.7,0.57029]
[1754258478211,0.2972,3507.1,3507.0,0.57025]
[1754258478508,0.479995,3507.1,3507.0,3.77805]
[1754258478810,0.784795,3507.1,3507.0,3.77805]
[1754258479104,0.182795,3507.1,3507.0,3.77805]
[1754258479314,0.3048,3507.3,3507.0,3.77805]
[1754258480112,0.37284,3508.0,3507.8,0.5701]
[1754258480414,0.37284,3508.0,3507.8,3.7779]
[1754258480807,0.67764,3508.0,3507.8,3.7779]
[1754258481007,0.3048,3507.9,3507.8,3.7779]
[1754258482115,0.37284,3508.0,3507.8,3.7779]
[1754258482517,0.67764,3508.0,3507.8,3.7779]
[1754258482807,0.3048,3508.3,3508.2,0.57005]
[1754258483009,0.3048,3508.4,3508.2,3.77785]
[1754258483916,1.0434,3508.9,3508.8,0.56995]
[1754258484121,1.7925,3508.9,3508.8,3.77775]
[1754258485808,1.7925,3508.9,3508.8,3.2078]
[1754258486308,1.7925,3508.9,3508.8,2.3911]
[1754258486510,1.7925,3508.4,3508.3,3.2078]
[1754258486716,1.7925,3508.4,3508.3,4.2619]
[1754258486920,1.7925,3508.4,3508.3,4.7119]
[1754258487117,28.75252677,3509.2,3508.3,4.7119]
[1754258487118,0.5072,3508.6,3508.5,0.7355]
[1754258487319,0.812,3508.6,3508.5,1.8275]
[1754258487619,1.0254,3508.6,3508.5,1.8275]
[1754258488519,0.2972,3509.1,3508.4,1.092]
[1754258488826,1.0358,3509.1,3509.0,2.07401]
[1754258489214,1.7925,3509.1,3509.0,2.07401]
[1754258491112,1.7925,3509.1,3508.7,3.5312]
[1754258491113,1.3406,3509.6,3509.5,1.62394]
[1754258491422,1.3406,3509.6,3509.5,2.07394]
[1754258491724,1.7925,3509.6,3509.5,2.07394]
[1754258493422,1.7925,3509.6,3509.5,1.75534]
[1754258493624,1.7925,3509.5,3509.4,3.77765]
[1754258493827,1.7925,3509.5,3509.4,3.2078]
[1754258494626,1.0539,3509.4,3508.9,4.09633]
[1754258494829,1.7925,3509.0,3508.9,4.7119]
[1754258495824,1.7925,3509.0,3508.9,3.6578]
[1754258496024,1.7925,3509.0,3508.9,3.2078]
[1754258496427,1.7925,3509.0,3508.9,3.7293]
[1754258496621,1.7925,3509.0,3508.9,4.3933]
[1754258497228,0.7282,3509.0,3508.9,5.0353]
[1754258497417,0.5148,3509.0,3508.9,5.0353]
[1754258497626,0.3048,3509.0,3508.9,5.0353]
[1754258497826,1.7925,3509.3,3509.2,0.7355]
[1754258498128,1.7925,3509.3,3509.2,1.5041]
[1754258499029,0.7282,3509.9,3509.8,2.07389]
[1754258499228,1.4877,3510.2,3510.1,1.5041]
[1754258499424,0.2972,3510.5,3510.2,0.56972]
[1754258499621,20.24263,3510.8,3510.2,0.3236]
[1754258499622,1.4877,3510.3,3510.2,0.3236]
[1754258499924,1.7925,3510.3,3510.2,0.3236]
[1754258500327,2.56428199,3510.3,3510.2,0.3236]
[1754258500633,2.56428199,3510.3,3510.2,1.5041]
[1754258502325,1.7925,3510.3,3510.2,1.5041]
[1754258503234,2.56609573,3510.3,3510.2,1.5041]
[1754258504329,1.50179573,3510.3,3510.2,1.5041]
[1754258504530,1.07785207,3510.3,3510.2,2.38162]
[1754258504731,1.80875207,3510.3,3510.2,1.8119]
[1754258504934,2.10345207,3510.3,3510.2,1.8119]
[1754258505437,0.77375207,3510.3,3510.2,1.8119]
[1754258506823,2.10345207,3510.3,3510.2,1.8119]
[1754258507026,0.77375207,3510.3,3510.2,1.8119]
[1754258507228,1.07785207,3510.3,3510.2,1.8119]
[1754258507427,1.29275207,3510.3,3510.2,1.8119]
[1754258507936,1.60935207,3510.3,3510.2,1.8119]
[1754258508834,1.07785207,3510.3,3510.2,1.8119]
[1754258509936,0.3041,3510.3,3510.2,1.8119]
[1754258510238,1.07952915,3510.3,3510.2,1.8119]
[1754258510536,1.29442915,3510.3,3510.2,1.8119]
[1754258510831,1.61102915,3510.3,3510.2,1.8119]
[1754258511035,0.77542915,3510.3,3510.2,1.8119]
[1754258512336,1.7825,3510.7,3510.6,2.36646]
[1754258512535,2.55779871,3510.7,3510.6,5.57426]
[1754258513433,2.55779871,3510.7,3510.6,5.26646]
[1754258514935,2.10499871,3510.7,3510.6,5.26646]
[1754258515140,2.10499871,3510.7,3510.6,5.57426]
[1754258515334,2.55779871,3510.7,3510.6,5.57426]
[1754258515839,2.55779871,3510.7,3510.6,5.26646]
[1754258516829,0.77529871,3510.7,3510.6,5.26646]
[1754258517141,1.07939871,3510.7,3510.6,5.57426]
[1754258517438,2.55779871,3510.7,3510.6,5.57426]
[1754258519741,1.07939871,3510.7,3510.6,5.57426]
[1754258520034,1.39599871,3510.7,3510.6,5.57426]
[1754258520238,1.61089871,3510.7,3510.6,5.57426]
[1754258520626,2.01624138,3511.0,3510.9,1.09341]
[1754258520835,1.0,3511.0,3510.9,4.62621658]
[1754258521537,1e-08,3511.0,3510.9,3.06841658]
[1754258521846,1.01624138,3512.2,3511.9,0.56944]
[1754258522036,1.01624138,3512.3,3512.2,0.5694]
[1754258522236,0.3041,3512.7,3512.6,0.56933]
[1754258522535,1.01624138,3512.9,3512.7,0.56932]
[1754258522729,1.01624138,3513.1,3512.7,0.56932]
[1754258522931,0.3041,3513.2,3513.1,0.56926]
[1754258523235,4.2078,3514.0,3513.9,0.56913]
[1754258523236,1.0,3514.0,3513.9,0.56913]
[1754258523437,1.0,3514.0,3513.9,3.77693]
[1754258523836,2.7825,3514.0,3513.9,3.77693]
[1754258524047,2.7825,3514.0,3513.9,3.2078]
[1754258524241,2.94666527,3514.0,3513.9,3.2078]
[1754258524633,1.7825,3513.9,3513.8,0.28278966]
[1754258524836,1.7825,3513.2,3513.1,3.2078]
[1754258525433,0.7694,3513.5,3513.1,3.2078]
[1754258525740,0.3041,3513.2,3513.1,3.2078]
[1754258527438,0.8356,3513.2,3513.1,3.2078]
[1754258527738,2.35174,3513.2,3513.1,3.2078]
[1754258527934,1.7825,3512.6,3512.5,3.2078]
[1754258528540,1.0735,3512.6,3512.0,3.2078]
[1754258528737,1.0735,3512.4,3512.0,3.2078]
[1754258528935,3.2078,3513.3,3512.0,3.2078]
[1754258528936,0.6207,3512.3,3512.0,3.2078]
[1754258529139,0.56934,3512.6,3512.0,3.2078]
[1754258529337,1.0735,3512.1,3511.9,0.28395026]
[1754258529537,1.0735,3512.1,3512.0,3.2078]
[1754258531140,1.7825,3512.1,3512.0,3.2078]
[1754258531849,1.0735,3511.6,3511.0,3.9584]
[1754258532050,3.2078,3512.1,3511.0,3.5156]
[1754258532051,1.0735,3511.2,3511.0,3.5156]
[1754258532244,1.0735,3511.5,3511.0,1.0654]
[1754258532440,1.0735,3511.5,3511.2,0.7506]
[1754258532745,1.0735,3512.0,3511.3,0.4428]
[1754258532948,1.64294,3512.0,3511.3,1.01234]
[1754258533143,1.0735,3511.9,3511.4,0.3078]
[1754258533446,0.6207,3511.9,3511.4,0.6226]
[1754258533640,0.56944,3512.0,3511.3,3.77734]
[1754258533835,0.56944,3512.0,3511.5,0.8125]
[1754258534041,1.1567,3511.6,3511.5,0.8125]
[1754258534243,0.56944,3512.0,3511.8,0.56945]
[1754258534244,0.3529,3512.0,3511.8,0.56945]
[1754258534548,0.3529,3512.0,3511.9,1.1461]
[1754258535751,0.6789,3512.6,3512.1,0.8125]
[1754258536045,3.2078,3512.8,3511.8,0.3336]
[1754258536253,1.1567,3512.4,3511.9,0.56945]
[1754258536547,1.1567,3512.3,3511.9,1.71555]
[1754258536751,0.8038,3512.2,3511.9,1.1461]
[1754258536946,0.56935,3512.5,3511.9,0.8125]
[1754258537250,1.1567,3512.0,3511.9,0.8125]
[1754258537850,1.1567,3512.0,3511.9,1.1461]
[1754258538050,1.1567,3512.0,3511.9,0.8125]
[1754258538749,1.916,3512.0,3511.9,1.9097]
[1754258538944,3.77712,3512.8,3512.0,0.56944]
[1754258539458,1.5631,3512.6,3512.5,1.9097]
[1754258539947,1.916,3512.6,3512.5,1.9097]
[1754258540350,0.8017,3512.6,3512.5,1.9097]
[1754258542154,1.1122,3512.6,3512.5,1.9097]
[1754258542555,1.916,3512.6,3512.5,1.9097]
[1754258543753,1.916,3512.6,3512.4,0.56937]
[1754258543754,0.7593,3512.5,3512.3,3.77718]
[1754258543952,1.1567,3512.4,3512.3,3.77718]
[1754258544154,1.916,3512.4,3512.3,4.32308]
[1754258544456,1.916,3512.4,3512.3,5.13558]
[1754258545248,1.916,3512.4,3512.3,5.35328]
[1754258546054,1.916,3512.4,3512.3,5.68688]
[1754258546449,1.916,3512.4,3512.3,3.77718]
[1754258546852,1.916,3512.4,3512.3,5.68688]
[1754258547351,1.916,3512.4,3512.3,5.35328]
[1754258547553,1.916,3512.4,3512.3,5.13558]
[1754258547957,1.916,3512.4,3512.3,3.77718]
[1754258548162,1.916,3512.4,3512.3,3.2078]
[1754258548669,1.4382,3512.1,3512.0,0.56943]
[1754258548867,1.916,3511.6,3511.5,3.77731]
[1754258549165,4.15749429,3512.9,3511.2,0.8125]
[1754258549166,1.4382,3511.4,3511.3,0.56954]
[1754258549355,1.1567,3511.3,3511.2,1.38206]
[1754258549551,1.916,3511.3,3511.2,1.61326]
[1754258549859,1.916,3511.3,3511.2,1.92796]
[1754258550557,0.7593,3511.3,3511.1,0.56958]
[1754258550868,1.916,3511.2,3511.1,1.11548]
[1754258551065,1.916,3511.2,3507.7,8.15233069]
[1754258551066,0.7593,3511.2,3510.8,0.56963]
[1754258551355,1.916,3510.9,3510.8,0.80083]
[1754258551563,1.916,3510.9,3510.8,5.13583]
[1754258551758,1.916,3510.9,3510.8,1.11553]
[1754258552068,1.916,3510.9,3510.8,0.2312]
[1754258552364,1.916,3510.9,3510.7,0.56964]
[1754258552564,1.916,3510.8,3510.7,0.56964]
[1754258552767,1.916,3510.8,3510.5,0.8125]
[1754258552960,1.916,3510.7,3510.6,1.11556]
[1754258553159,1.916,3510.7,3510.6,1.92806]
[1754258553660,1.916,3510.7,3510.6,2.14576]
[1754258554069,1.916,3510.7,3510.6,1.5761]
[1754258554761,1.916,3510.7,3510.6,0.5459]
[1754258555865,1.916,3510.7,3510.6,1.3584]
[1754258556254,1.916,3510.7,3510.6,0.5459]
[1754258556961,1.916,3510.5,3510.4,3.2078]
[1754258557155,1.916,3510.1,3510.0,4.7839]
[1754258557765,1.916,3510.1,3510.0,5.1175]
[1754258558263,0.7593,3510.1,3509.6,3.77762]
[1754258558563,0.56974,3510.2,3509.9,1.5761]
[1754258558564,1.916,3510.0,3509.9,1.5761]
[1754258558767,1.916,3510.0,3509.9,0.5459]
[1754258558963,1.916,3510.0,3509.9,0.2312]
[1754258559157,1.916,3509.8,3509.7,1.3584]
[1754258559358,1.916,3509.8,3509.7,0.5459]
[1754258559761,0.6789,3509.9,3509.1,3.2078]
[1754258559960,1.916,3509.2,3509.1,5.1175]
[1754258560161,1.916,3509.2,3509.1,4.7839]
[1754258560961,1.916,3509.2,3509.1,3.2078]
[1754258561161,0.5368,3508.8,3508.7,1.3584]
[1754258561368,1.916,3508.8,3508.7,1.3584]
[1754258561867,1.916,3508.8,3508.7,1.5761]
[1754258562267,1.916,3508.8,3508.6,3.2078]
[1754258562463,1.1567,3508.7,3508.6,3.2078]
[1754258562669,1.916,3508.7,3508.6,3.7537]
[1754258563165,1.916,3508.7,3508.6,0.5459]
[1754258563566,4.15749429,3509.3,3508.2,3.2078]
[1754258563767,1.8957,3508.0,3507.9,1.5613404]
[1754258563971,1.8957,3508.0,3507.9,4.7691404]
[1754258565170,1.8957,3508.0,3507.9,1.0262404]
[1754258568783,0.2176,3507.1,3507.0,1.4166]
[1754258568972,0.2176,3507.1,3507.0,1.8862]
[1754258570274,1.4958,3507.1,3507.0,0.7464]
[1754258570476,1.4958,3507.1,3507.0,1.8862]
[1754258570875,0.4339,3507.8,3507.4,0.8172]
[1754258571177,0.3219,3508.0,3507.7,1.8862]
[1754258571378,1.4958,3508.0,3507.9,0.7464]
[1754258571577,1.4958,3508.0,3507.9,1.8862]
[1754258571977,1.8335,3508.0,3507.9,1.4166]
[1754258572477,1.8335,3508.0,3507.9,0.5795]
[1754258572977,1.8335,3508.0,3507.9,0.9021]
[1754258573178,1.8335,3508.0,3507.9,1.4166]
[1754258573380,1.8335,3508.0,3507.9,0.3476]
[1754258573782,0.74,3507.7,3507.6,1.8862]
[1754258574077,1.4958,3507.7,3507.6,1.8862]
[1754258574274,0.74,3507.7,3507.4,3.2078]
[1754258574477,1.0619,3507.6,3507.5,1.8862]
[1754258575279,1.4958,3507.6,3507.5,1.8862]
[1754258575776,1.1739,3506.5,3506.4,3.9542]
[1754258575984,1.8335,3506.5,3506.4,0.5795]
[1754258576277,1.8335,3506.5,3506.4,0.3476]
[1754258576472,1.8335,3506.5,3506.1,0.3226]
[1754258576473,0.2176,3505.9,3505.8,4.7464]
[1754258576676,1.4958,3505.9,3505.8,4.7464]
[1754258576870,1.8335,3505.9,3505.4,0.4696]
[1754258577075,0.74,3505.6,3505.5,1.8862]
[1754258577275,1.4958,3505.6,3505.5,1.8862]
[1754258577476,1.8335,3505.6,3505.5,0.5795]
[1754258577673,0.74,3505.1,3505.0,4.7464]
[1754258577874,1.8335,3505.1,3505.0,3.2078]
[1754258578377,0.3377,3505.0,3504.7,0.3226]
[1754258578683,1.0935,3505.0,3504.7,0.3226]
[1754258579074,1.0935,3505.0,3504.5,4.12604]
[1754258580381,1.0935,3505.0,3504.7,0.57061]
[1754258580578,3.2078,3505.4,3504.9,1.59769879]
[1754258580787,0.7558,3505.2,3505.1,1.1398]
[1754258581280,0.7558,3505.2,3505.1,1.8862]
[1754258581478,3.2078,3505.4,3505.1,1.8862]
[1754258581479,3.9478,3505.4,3505.3,0.7464]
[1754258581781,4.3817,3505.4,3505.3,1.8862]
[1754258582175,3.2078,3505.4,3505.3,1.8862]
[1754258582579,4.2697,3505.4,3505.3,1.094]
[1754258582881,4.7036,3505.4,3505.3,1.094]
[1754258583282,1.5116,3505.2,3505.1,0.3476]
[1754258583585,1.8335,3505.2,3504.9,1.49671879]
[1754258583779,3.2078,3505.4,3505.0,1.4166]
[1754258583780,1.1771,3505.1,3505.0,1.4166]
[1754258583980,1.0619,3505.1,3505.0,1.8862]
[1754258584286,1.4958,3505.1,3505.0,1.8862]
[1754258584680,3.2078,3505.4,3505.1,0.57056]
[1754258584880,3.2078,3505.4,3505.3,1.8862]
[1754258585083,3.8593,3505.4,3505.3,1.8862]
[1754258585681,4.3817,3505.4,3505.3,1.8862]
[1754258586083,3.4254,3505.4,3505.3,1.8862]
[1754258586283,0.2176,3505.4,3505.3,1.8862]
[1754258586483,1.0619,3505.7,3505.6,0.7464]
[1754258586687,1.81797143,3505.7,3505.6,1.5386]
[1754258586887,0.3219,3505.5,3505.1,1.31695]
[1754258587185,1.4958,3505.5,3505.4,1.8862]
[1754258587989,1.1739,3505.5,3505.4,1.8862]
[1754258588283,1.93111031,3505.5,3505.4,1.8862]
[1754258588490,2.25301031,3505.5,3505.4,1.8862]
[1754258588990,1.4958,3505.5,3505.4,1.8862]
[1754258589191,2.25349551,3505.5,3505.4,1.8862]
[1754258591995,1.49769551,3505.5,3505.1,0.8172]
[1754258592190,0.2176,3505.2,3505.1,1.8862]
[1754258592399,2.25349551,3505.2,3505.1,1.8862]
[1754258593094,2.94414551,3505.2,3505.1,0.3476]
[1754258593295,0.57077,3503.8,3503.7,0.6702]
[1754258593494,0.2002,3503.9,3503.8,0.3476]
[1754258593801,20.5809,3503.9,3503.8,0.3476]
[1754258594201,20.99077287,3503.9,3503.8,0.3476]
[1754258594402,21.07907287,3503.9,3503.8,1.9297]
[1754258594703,0.83707287,3503.9,3503.8,1.9297]
[1754258595001,21.34357287,3503.9,3503.8,0.3476]
[1754258595197,0.57079,3503.7,3503.0,0.4529]
[1754258595398,0.3508,3503.2,3503.1,1.10428]
[1754258595593,0.3508,3503.2,3503.1,1.5821]
[1754258595899,0.3508,3503.2,3503.1,1.9385]
[1754258596102,0.3152,3503.2,3503.1,1.9385]
[1754258596599,0.3508,3503.2,3503.1,1.9385]
[1754258596797,0.3508,3503.2,3503.1,1.3427]
[1754258597104,1.1101472,3503.2,3503.1,1.6994]
[1754258597296,0.3508,3502.9,3502.8,1.9385]
[1754258597796,0.2379,3503.1,3503.0,0.7725]
[1754258598101,1.10986297,3503.1,3503.0,1.4856]
[1754258598503,1.10986297,3503.1,3503.0,0.3564]
[1754258598900,0.3508,3502.8,3502.7,0.3567]
[1754258599103,1.10986297,3502.8,3502.7,0.3567]
[1754258599404,0.2379,3502.7,3502.6,0.3564]
[1754258599598,0.99696297,3502.7,3502.6,0.3564]
[1754258599795,21.21596297,3502.7,3502.6,0.5809]
[1754258599994,21.32886297,3502.7,3502.6,0.5809]
[1754258600200,21.32886297,3502.7,3502.6,0.9376]
[1754258600504,21.36456297,3502.7,3502.6,0.3564]
[1754258600699,0.2379,3502.4,3502.3,0.5812]
[1754258600899,1.11101233,3502.4,3502.3,1.1292]
[1754258601100,1.11101233,3502.4,3502.1,1.02394]
[1754258601300,20.219,3502.7,3502.0,0.3564]
[1754258601503,0.057,3502.1,3501.9,1.02799869]
[1754258601803,1.42802,3501.2,3500.3,0.3564]
[1754258601992,3.85642,3500.4,3500.3,0.3564]
[1754258602193,0.3499,3500.0,3499.2,3.2078]
[1754258602404,4.15749429,3499.3,3499.2,3.6607]
[1754258602592,4.15749429,3499.3,3498.1,3.2078]
[1754258602593,0.3499,3499.2,3498.1,3.2078]
[1754258602792,0.4272,3499.1,3498.9,1.48178009]
[1754258603003,0.4272,3499.0,3498.9,1.48178009]
[1754258603202,0.4272,3499.0,3498.9,1.02888009]
[1754258603596,1.25926,3499.0,3498.2,1.02457]
[1754258603796,1.25926,3499.0,3498.2,0.57167]
[1754258603797,4.15749429,3498.4,3498.2,0.57167]
[1754258604008,20.391,3498.7,3498.5,0.4529]
[1754258604308,0.0773,3498.6,3498.3,0.8096]
[1754258604502,4.15749429,3498.4,3498.1,3.7795]
[1754258604702,0.4272,3498.6,3498.2,0.57168]
[1754258605100,3.2078,3499.3,3499.1,0.3564]
[1754258605402,20.418,3499.6,3499.5,1.166]
[1754258605606,3.2078,3500.0,3499.8,0.3564]
[1754258605805,3.2078,3500.4,3500.3,1.166]
[1754258606397,20.446,3500.8,3500.3,1.166]
[1754258606601,3.2078,3501.0,3500.8,0.57126]
[1754258606801,2.3515,3501.0,3500.9,0.3564]
[1754258607008,1.3499,3502.0,3501.8,0.4625]
[1754258607305,1.0,3502.0,3501.4,3.2078]
[1754258607509,1.0,3502.0,3501.3,0.57117]
[1754258607510,0.6877,3501.7,3501.6,0.4529]
[1754258608100,1.0,3502.0,3501.1,0.3564]
[1754258608412,1.0,3502.0,3500.9,0.0096]
[1754258608413,0.4746,3501.5,3500.9,0.0096]
[1754258608602,3.2078,3501.4,3500.9,0.4529]
[1754258608800,0.3378,3500.7,3500.1,4.0171]
[1754258609006,3.77903,3501.0,3500.1,3.6607]
[1754258609303,3.77903,3501.0,3500.1,3.2078]
[1754258609304,0.4746,3500.4,3500.1,3.2078]
[1754258609497,0.3378,3500.0,3499.5,3.2078]
[1754258609806,0.8245,3500.1,3499.6,0.57145]
[1754258609807,0.6877,3500.1,3499.6,0.57145]
[1754258610006,3.2078,3500.2,3499.6,0.57145]
[1754258610204,3.2078,3500.2,3499.5,3.77926]
[1754258610519,3.2078,3500.2,3499.5,3.2078]
[1754258610710,0.3499,3499.7,3499.1,1.02443]
[1754258610910,1.1623,3499.5,3498.7,0.4529]
[1754258611199,0.3499,3499.0,3498.8,0.4529]
[1754258611405,0.6877,3498.8,3498.5,4.0171]
[1754258611608,0.6877,3498.7,3498.5,3.6607]
[1754258611805,0.6877,3498.6,3498.5,3.6607]
[1754258613002,0.6877,3499.3,3498.6,0.57162]
[1754258613217,1.1623,3499.3,3498.6,0.57162]
[1754258613409,0.4746,3499.3,3498.6,0.57162]
[1754258613609,0.6877,3499.2,3498.6,0.57162]
[1754258613809,0.4746,3499.3,3498.6,0.5716]
[1754258614110,0.57146,3499.6,3499.0,0.143]
[1754258614111,21.76015,3499.6,3499.0,0.143]
[1754258614309,0.6877,3499.1,3498.5,0.4529]
[1754258614508,3.8955,3498.8,3498.0,3.2078]
[1754258614708,3.8955,3498.8,3498.1,0.4529]
[1754258615012,0.6877,3498.8,3498.1,0.4529]
[1754258615207,1.1623,3499.1,3498.3,1.02457]
[1754258615513,0.6877,3499.0,3498.7,0.4994]
[1754258615705,0.3378,3499.0,3498.8,0.4529]
[1754258615906,0.3499,3498.8,3498.5,0.4529]
[1754258616102,1.3961,3498.7,3498.4,3.2078]
[1754258616312,0.4746,3498.6,3498.4,3.6607]
[1754258616615,1.1623,3498.6,3498.1,0.5717]
[1754258616811,1.1623,3498.6,3498.0,3.2078]
[1754258617006,1.1623,3498.2,3498.0,3.2078]
[1754258617211,1.1623,3498.1,3498.0,3.2078]
[1754258618215,0.3499,3498.7,3498.3,0.9523]
[1754258618415,0.3499,3498.7,3498.1,0.143]
[1754258618712,0.3499,3498.7,3498.6,0.4529]
[1754258619115,0.6877,3498.7,3498.6,0.4529]
[1754258620111,0.6877,3498.6,3498.0,3.7795]
[1754258620712,0.6877,3498.6,3498.0,3.2078]
[1754258621015,1.1623,3498.6,3498.0,3.2078]
[1754258621313,1.1623,3498.6,3498.1,0.4529]
[1754258621314,0.57162,3498.6,3498.1,0.4529]
[1754258621522,1.1623,3498.3,3498.1,0.4529]
[1754258621824,1.1623,3497.9,3497.8,0.4529]
[1754258622717,1.1623,3498.3,3497.8,0.4529]
[1754258623013,1.1623,3498.1,3497.8,0.4529]
[1754258623210,0.4746,3498.0,3497.8,0.4529]
[1754258623416,20.473,3498.4,3497.3,0.4529]
[1754258623417,3.2078,3498.1,3497.3,0.4529]
[1754258623620,0.57183,3497.3,3497.1,0.4529]
[1754258623814,0.8183,3497.2,3497.1,0.4529]
[1754258624216,1.2923,3497.2,3497.1,0.4529]
[1754258624414,1.2923,3497.4,3497.0,3.2078]
[1754258624716,0.474,3497.2,3496.8,0.5301]
[1754258624913,0.8183,3497.1,3497.0,0.4836]
[1754258625511,0.4275,3497.4,3496.6,3.2078]
[1754258625711,1.2923,3497.3,3496.6,4.26333]
[1754258626324,1.86414,3497.3,3496.6,1.05553]
[1754258626522,0.8183,3497.2,3496.6,0.4836]
[1754258626716,0.8183,3497.0,3496.5,0.4836]
[1754258626913,20.458,3496.9,3496.5,0.4836]
[1754258627117,21.2733,3496.9,3496.7,0.3946]
[1754258627422,21.2733,3496.9,3496.8,0.6191]
[1754258627814,21.7473,3496.9,3496.8,0.6191]
[1754258628018,21.2773,3497.5,3497.1,0.5301]
[1754258628323,0.75989677,3497.4,3497.3,1.0137]
[1754258628517,0.8183,3497.3,3496.7,0.3946]
[1754258628714,1.2923,3496.8,3496.5,0.4836]
[1754258628914,0.474,3496.7,3496.5,0.4836]
[1754258629127,0.57193,3496.8,3496.1,0.3946]
[1754258629128,1.2923,3496.6,3496.1,0.3946]
[1754258629325,1.2923,3496.6,3496.0,3.2078]
[1754258629326,0.474,3496.4,3496.0,3.6914]
[1754258629622,0.474,3496.2,3496.0,3.6914]
[1754258629821,0.8183,3496.1,3496.0,3.6914]
[1754258630018,0.8183,3496.5,3496.1,1.0137]
[1754258630323,0.8183,3496.5,3496.0,3.2078]
[1754258630324,1.01498128,3497.4,3496.8,0.57191]
[1754258630624,0.3908,3497.1,3496.9,0.6191]
[1754258630813,2.05388257,3497.0,3496.9,0.6191]
[1754258631015,1.57988257,3497.0,3496.9,0.6191]
[1754258631225,0.8183,3497.0,3496.9,0.4836]
[1754258631421,2.05685007,3497.0,3496.6,0.57194]
[1754258631623,1.2923,3496.8,3496.5,1.58565]
[1754258631926,0.8183,3496.7,3496.6,0.4836]
[1754258632621,20.517,3497.0,3496.9,1.0137]
[1754258632821,21.28134509,3497.0,3496.9,1.0137]
[1754258633024,22.09964509,3497.0,3496.9,1.0137]
[1754258633222,0.76434509,3497.0,3496.9,1.0137]
[1754258635530,1.58264509,3497.0,3496.9,1.0137]
[1754258635827,1.58264509,3497.0,3496.9,0.6191]
[1754258636027,1.2923,3496.9,3496.8,3.6914]
[1754258636326,1.58264509,3496.9,3496.8,3.8269]
[1754258636721,1.58264509,3496.9,3496.8,3.2078]
[1754258636922,1.2923,3496.9,3496.8,3.6914]
[1754258637122,1.2923,3496.9,3496.8,3.2078]
[1754258637328,0.8183,3496.9,3496.8,3.6914]
[1754258637522,1.58337612,3496.9,3496.8,4.2215]
[1754258637721,0.76507612,3496.9,3496.8,4.2215]
[1754258638425,1.01498128,3497.5,3497.3,0.57183]
[1754258638614,1.01498128,3497.7,3497.5,0.5718]